fUSD/lending_fUSD_20240606
["ID","MTS","AMOUNT","RATE_DAILY","PERIOD"]
[328666128,1717684259280,-336.34618395,0.00029314,4]
[328666129,1717684259290,-500.0,0.00029314,4]
[328666130,1717684259299,-500.0,0.00029314,4]
[328666131,1717684259308,-500.0,0.00029314,4]
[328666132,1717684259317,-500.0,0.00029314,4]
[328666133,1717684259326,-500.0,0.00029314,4]
[328666134,1717684259335,-500.0,0.00029314,4]
[328666135,1717684259344,-500.0,0.00029314,4]
[328666136,1717684259353,-500.0,0.00029314,4]
[328666137,1717684259362,-500.0,0.00029314,4]
[328666138,1717684259372,-575.36,0.00029314,4]
[328666139,1717684259381,-500.0,0.00029314,4]
[328666140,1717684259391,-500.0,0.00029314,4]
[328666141,1717684259400,-500.0,0.00029314,4]
[328666142,1717684259409,-500.0,0.00029314,4]
[328666143,1717684259418,-507.21,0.00029314,4]
[328666144,1717684259427,-500.0,0.00029314,4]
[328666145,1717684259436,-500.0,0.00029314,4]
[328666146,1717684259446,-500.0,0.00029314,4]
[328666147,1717684259455,-154.34,0.00029314,4]
[328666148,1717684259464,-500.0,0.00029314,4]
[328666149,1717684259474,-580.83759251,0.00029314,4]
[328666150,1717684259483,-500.0,0.00029314,4]
[328666151,1717684259494,-500.0,0.00029314,4]
[328666152,1717684259503,-500.0,0.00029314,4]
[328666153,1717684259512,-500.0,0.00029314,4]
[328666154,1717684259521,-500.0,0.00029314,4]
[328666155,1717684259530,-709.72,0.00029314,4]
[328666156,1717684259539,-512.20656224,0.00029314,4]
[328666157,1717684259549,-500.0,0.00029314,4]
[328666158,1717684259558,-952.09,0.00029314,4]
[328666159,1717684259567,-1134.97,0.00029314,4]
[328666160,1717684259576,-2774.47,0.00029314,4]
[328666161,1717684259585,-500.0,0.00029314,4]
[328666162,1717684259594,-2256.92,0.00029314,4]
[328666163,1717684259604,-2195.89,0.00029314,21]
[328666164,1717684259613,-500.0,0.00029314,4]
[328666165,1717684259622,-2236.94,0.00029314,4]
[328666166,1717684259631,-826.08,0.00029314,4]
[328666167,1717684259641,-500.0,0.00029314,4]
[328666168,1717684259650,-5281.43,0.00029314,4]
[328666169,1717684259659,-1361.63,0.00029314,4]
[328666170,1717684259668,-500.0,0.00029314,4]
[328666171,1717684259677,-500.0,0.00029314,4]
[328666172,1717684259687,-500.0,0.00029314,4]
[328666173,1717684259696,-500.0,0.00029314,4]
[328666174,1717684259705,-500.0,0.00029314,4]
[328666175,1717684259715,-911.21,0.00029314,4]
[328666176,1717684259724,-500.0,0.00029314,4]
[328666177,1717684259733,-580.25,0.00029314,4]
[328666178,1717684259742,-666.1,0.00029314,4]
[328666179,1717684259751,-500.0,0.00029314,4]
[328666180,1717684259760,-469.84742745,0.00029314,4]
[328666181,1717684259770,-2766.93,0.00029314,4]
[328666182,1717684259782,-500.0,0.00029314,4]
[328666183,1717684259791,-500.0,0.00029314,4]
[328666184,1717684259800,-654.11,0.00029314,4]
[328666185,1717684259810,-2418.52,0.00029314,4]
[328666186,1717684259821,-500.0,0.00029314,4]
[328666187,1717684259831,-500.0,0.00029314,4]
[328666188,1717684259841,-500.0,0.00029314,4]
[328666189,1717684259851,-1539.59,0.00029314,4]
[328666190,1717684259861,-1255.3,0.00029314,4]
[328666191,1717684259871,-500.0,0.00029314,4]
[328666192,1717684259880,-500.0,0.00029314,4]
[328666193,1717684259890,-500.0,0.00029314,4]
[328666194,1717684259900,-2108.4,0.00029314,4]
[328666195,1717684259910,-500.0,0.00029314,4]
[328666196,1717684259919,-500.0,0.00029314,4]
[328666197,1717684259928,-513.14,0.00029314,4]
[328666198,1717684259939,-500.0,0.00029314,4]
[328666199,1717684259948,-500.0,0.00029314,4]
[328666200,1717684259960,-1285.34,0.00029314,4]
[328666201,1717684259969,-500.0,0.00029314,4]
[328666202,1717684259978,-500.0,0.00029314,4]
[328666203,1717684259988,-500.0,0.00029314,4]
[328666204,1717684259997,-500.0,0.00029314,4]
[328666205,1717684260006,-1334.22,0.00029314,4]
[328666206,1717684260016,-500.0,0.00029314,4]
[328666207,1717684260025,-500.0,0.00029314,4]
[328666208,1717684260035,-1021.38,0.00029314,4]
[328666209,1717684260044,-3029.84,0.00029314,4]
[328666210,1717684260054,-500.0,0.00029314,4]
[328666211,1717684260063,-500.0,0.00029314,4]
[328666212,1717684260072,-2065.71,0.00029314,4]
[328666213,1717684260081,-500.0,0.00029314,4]
[328666214,1717684260094,-561.11,0.00029314,4]
[328666215,1717684260105,-500.0,0.00029314,4]
[328666216,1717684260114,-500.0,0.00029314,4]
[328666217,1717684260124,-500.0,0.00029314,4]
[328666218,1717684260134,-2539.25,0.00029314,4]
[328666219,1717684260143,-831.61,0.00029314,4]
[328666220,1717684260152,-500.0,0.00029314,4]
[328666221,1717684260163,-859.07,0.00029314,4]
[328666222,1717684260173,-500.0,0.00029314,4]
[328666223,1717684260182,-500.0,0.00029314,4]
[328666224,1717684260192,-816.38,0.00029314,4]
[328666225,1717684260203,-500.0,0.00029314,4]
[328666226,1717684260213,-500.0,0.00029314,4]
[328666227,1717684260223,-1242.44,0.00029314,4]
[328666228,1717684260232,-1933.46,0.00029314,4]
[328666229,1717684260243,-968.99,0.00029314,4]
[328666230,1717684260256,-347.71631499,0.00029314,4]
[328666231,1717684260267,-560.98,0.00029314,4]
[328666232,1717684260275,-500.0,0.00029314,4]
[328666233,1717684260287,-813.21,0.00029314,4]
[328666234,1717684260298,-500.0,0.00029314,4]
[328666235,1717684260307,-500.0,0.00029314,4]
[328666236,1717684260317,-500.0,0.00029314,4]
[328666237,1717684260326,-250.0,0.00029314,4]
[328666238,1717684260335,-500.0,0.00029314,4]
[328666239,1717684260345,-500.0,0.00029314,4]
[328666240,1717684260354,-563.87,0.00029314,4]
[328666241,1717684260363,-516.57,0.00029314,4]
[328666242,1717684260372,-648.12,0.00029314,4]
[328666243,1717684260381,-500.0,0.00029314,2]
[328666244,1717684260390,-500.0,0.00029314,4]
[328666245,1717684260400,-500.0,0.00029314,4]
[328666246,1717684260411,-500.0,0.00029314,4]
[328666247,1717684260421,-500.0,0.00029314,4]
[328666248,1717684260430,-1267.63,0.00029314,4]
[328666249,1717684260440,-500.0,0.00029314,4]
[328666250,1717684260451,-500.0,0.00029314,4]
[328666251,1717684260460,-500.0,0.00029314,4]
[328666252,1717684260470,-512.84,0.00029314,4]
[328666253,1717684260479,-1896.79,0.00029314,4]
[328666254,1717684260488,-1555.0,0.00029314,4]
[328666255,1717684260497,-824.64,0.00029314,4]
[328666256,1717684260506,-638.6,0.00029314,4]
[328666257,1717684260515,-1759.69,0.00029314,4]
[328666258,1717684260524,-500.0,0.00029314,4]
[328666259,1717684260533,-500.0,0.00029314,4]
[328666260,1717684260542,-500.0,0.00029314,4]
[328666261,1717684260553,-158.0316241,0.00029314,4]
[328666262,1717684260564,-500.0,0.00029314,4]
[328666263,1717684260576,-2463.73,0.00029314,4]
[328666264,1717684260586,-634.91,0.00029314,4]
[328666265,1717684260596,-500.0,0.00029314,4]
[328666266,1717684260605,-921.39,0.00029314,4]
[328666267,1717684260615,-500.0,0.00029314,4]
[328666268,1717684260625,-500.0,0.00029314,4]
[328666269,1717684260634,-500.0,0.00029314,4]
[328666270,1717684260644,-2196.78,0.00029314,4]
[328666271,1717684260654,-5905.36,0.00029314,4]
[328666272,1717684260663,-644.25,0.00029314,4]
[328666273,1717684260673,-1735.83,0.00029314,4]
[328666274,1717684260682,-500.0,0.00029314,4]
[328666275,1717684260691,-7148.13,0.00029314,4]
[328666276,1717684260702,-500.0,0.00029314,4]
[328666277,1717684260711,-500.0,0.00029315,4]
[328666278,1717684260721,-500.0,0.00029315,4]
[328666279,1717684260730,-500.0,0.00029315,4]
[328666280,1717684260739,-500.0,0.00029315,4]
[328666281,1717684260749,-500.0,0.00029315,4]
[328666282,1717684260759,-500.0,0.00029315,4]
[328666283,1717684260768,-500.0,0.00029315,4]
[328666284,1717684260780,-616.99,0.00029315,4]
[328666285,1717684260790,-500.0,0.00029315,4]
[328666286,1717684260799,-500.0,0.00029315,4]
[328666287,1717684260808,-500.0,0.00029315,4]
[328666288,1717684260819,-500.0,0.00029315,4]
[328666289,1717684260828,-500.0,0.00029315,4]
[328666290,1717684260838,-1651.72,0.00029315,4]
[328666291,1717684260847,-500.0,0.00029315,4]
[328666292,1717684260858,-500.0,0.00029315,4]
[328666293,1717684260867,-500.0,0.00029315,4]
[328666294,1717684260877,-500.0,0.00029315,4]
[328666295,1717684260887,-500.0,0.00029315,4]
[328666296,1717684260896,-500.0,0.00029315,4]
[328666297,1717684260905,-500.0,0.00029315,4]
[328666298,1717684260914,-500.0,0.00029315,4]
[328666299,1717684260924,-500.0,0.00029315,4]
[328666300,1717684260933,-500.0,0.00029315,4]
[328666301,1717684260942,-500.0,0.00029315,4]
[328666302,1717684260952,-500.0,0.00029315,4]
[328666303,1717684260961,-500.0,0.00029315,4]
[328666304,1717684260971,-500.0,0.00029315,4]
[328666305,1717684260980,-729.48,0.00029315,4]
[328666306,1717684260990,-500.0,0.00029315,4]
[328666307,1717684260999,-500.0,0.00029315,4]
[328666308,1717684261009,-510.78,0.00029315,4]
[328666309,1717684261019,-256.80258057,0.00029315,4]
[328666310,1717684261028,-500.0,0.00029315,4]
[328666311,1717684261038,-500.0,0.00029315,4]
[328666312,1717684261048,-500.0,0.00029315,4]
[328666313,1717684261057,-500.0,0.00029315,4]
[328666314,1717684261067,-524.89,0.00029315,4]
[328666315,1717684261077,-500.0,0.00029315,4]
[328666316,1717684261087,-512.87537594,0.00029315,4]
[328666317,1717684261097,-570.74,0.00029315,4]
[328666318,1717684261107,-585.4097754,0.00029315,4]
[328666319,1717684261116,-3454.23,0.00029315,4]
[328666320,1717684261127,-164.47688565,0.00029315,4]
[328666321,1717684261137,-500.0,0.00029315,4]
[328666322,1717684261146,-500.0,0.00029315,4]
[328666323,1717684261156,-2264.76,0.00029315,4]
[328666324,1717684261165,-500.0,0.00029315,4]
[328666325,1717684261175,-536.19,0.00029315,4]
[328666326,1717684261185,-500.0,0.00029315,4]
[328666327,1717684261195,-500.0,0.00029315,4]
[328666328,1717684261204,-205.89792315,0.00029315,4]
[328666329,1717684261214,-500.0,0.00029315,4]
[328666330,1717684261224,-500.0,0.00029315,4]
[328666331,1717684261234,-500.0,0.00029315,4]
[328666332,1717684261244,-743.79,0.00029315,4]
[328666333,1717684261253,-500.0,0.00029315,4]
[328666334,1717684261262,-1522.05576886,0.0002933,2]
[328666335,1717684261272,-5478.31181403,0.0002934,2]
[328666336,1717684261281,-1000.0,0.00029354,14]
[328666337,1717684261292,-3193.74952966,0.0002938,2]
[328666338,1717684261301,-150.0,0.00029381,2]
[328666339,1717684261311,-285.92858482,0.00029385,2]
[328666340,1717684261320,-473.64962238,0.00029398,7]
[328666341,1717684261330,-1410.93859962,0.000294,4]
[328666342,1717684261339,-500.0,0.000294,8]
[328666343,1717684261348,-500.0,0.000294,8]
[328666344,1717684261358,-5478.31181403,0.00029402,2]
[328666345,1717684261367,-452.0,0.0002945,15]
[328666346,1717684261378,-154.0,0.0002945,15]
[328666347,1717684261387,-452.0,0.0002946,15]
[328666348,1717684261396,-2392.391434,0.0002946,2]
[328666349,1717684261405,-1691.4422248,0.0002946,2]
[328666350,1717684261414,-4925.4893534,0.0002946,2]
[328666351,1717684261424,-3483.8006715,0.0002946,2]
[328666352,1717684261433,-178.32537667,0.00029462,2]
[328666353,1717684261443,-5478.31181403,0.00029464,2]
[328666354,1717684261452,-452.0,0.0002947,15]
[328666355,1717684261461,-150.0,0.00029479,2]
[328666356,1717684261470,-877797.68295216,0.0002948,14]
[328666357,1717684261690,-653.97457036,0.0002948,14]
[328666358,1717684261702,-1176.64081656,0.0002948,14]
[328666359,1717684261714,-12973.58679411,0.0002948,14]
[328666360,1717684261724,-729.708649,0.0002948,7]
[328666361,1717684261734,-616.99554026,0.0002948,7]
[328666362,1717684261746,-112.71310874,0.0002948,7]
[328666363,1717684261756,-1000.0,0.00029485,14]
[328666364,1717684261766,-8450.7127794,0.00029489,2]
[328666365,1717684261779,-1243.9391314,0.00029489,2]
[328666366,1717684261948,-107181.5301416,0.00029489,2]
[328666367,1717684261958,-226.62818763,0.000295,3]
[328666368,1717684261968,-150.0,0.000295,6]
[328666369,1717684261978,-5478.31181403,0.00029526,2]
[328666370,1717684261988,-500.0,0.00029532,2]
[328666371,1717684261998,-500.0,0.00029532,2]
[328666372,1717684262008,-28788.57,0.00029554,6]
[328666373,1717684262019,-990.4930156,0.00029568,2]
[328666374,1717684262030,-2042.1119896,0.00029568,2]
[328666375,1717684262041,-232.48717405,0.00029577,2]
[328666376,1717684262053,-152.0,0.0002958,4]
[328666377,1717684262064,-500.0,0.00029587,4]
[328666378,1717684262074,-1166.68,0.00029587,4]
[328666379,1717684262084,-2844.45,0.00029587,4]
[328666380,1717684262095,-1098.52,0.00029587,4]
[328666381,1717684262106,-612.87,0.00029587,4]
[328666382,1717684262116,-500.0,0.00029587,4]
[328666383,1717684262127,-1728.88,0.00029587,4]
[328666384,1717684262137,-500.0,0.00029587,4]
[328666385,1717684262146,-1045.12,0.00029587,4]
[328666386,1717684262155,-601.86519693,0.00029587,4]
[328666387,1717684262166,-1033.11,0.00029587,4]
[328666388,1717684262176,-500.0,0.00029587,4]
[328666389,1717684262186,-466.63426081,0.00029588,4]
[328666390,1717684262196,-500.0,0.00029588,4]
[328666391,1717684262206,-500.0,0.00029588,4]
[328666392,1717684262216,-500.0,0.00029588,4]
[328666393,1717684262226,-543.98079948,0.00029588,4]
[328666394,1717684262238,-764.67,0.00029588,4]
[328666395,1717684262248,-271.47552781,0.00029588,4]
[328666396,1717684262258,-1038.02,0.00029588,4]
[328666397,1717684262269,-553.94,0.00029588,4]
[328666398,1717684262279,-500.0,0.00029588,4]
[328666399,1717684262289,-500.0,0.00029588,4]
[328666400,1717684262298,-500.0,0.00029588,4]
[328666401,1717684262307,-750.72,0.00029588,4]
[328666402,1717684262317,-500.0,0.00029588,4]
[328666403,1717684262327,-897.88,0.00029588,4]
[328666404,1717684262337,-753.39,0.00029588,4]
[328666405,1717684262347,-701.96,0.00029588,4]
[328666406,1717684262358,-500.0,0.00029588,4]
[328666407,1717684262367,-598.24,0.00029588,4]
[328666408,1717684262378,-500.0,0.00029588,4]
[328666409,1717684262388,-500.0,0.00029588,4]
[328666410,1717684262397,-500.0,0.00029588,4]
[328666411,1717684262407,-190.37331982,0.00029588,4]
[328666412,1717684262416,-1435.34,0.00029588,4]
[328666413,1717684262426,-730.6,0.00029588,4]
[328666414,1717684262436,-500.0,0.00029588,4]
[328666415,1717684262446,-500.0,0.00029588,4]
[328666416,1717684262456,-500.0,0.00029588,4]
[328666417,1717684262466,-500.12,0.00029588,4]
[328666418,1717684262476,-500.0,0.00029588,4]
[328666419,1717684262485,-619.52,0.00029588,4]
[328666420,1717684262495,-500.0,0.00029588,4]
[328666421,1717684262505,-500.0,0.00029588,4]
[328666422,1717684262515,-500.0,0.00029588,4]
[328666423,1717684262524,-500.0,0.00029588,4]
[328666424,1717684262533,-500.0,0.00029588,4]
[328666425,1717684262543,-500.0,0.00029588,4]
[328666426,1717684262552,-500.0,0.00029588,4]
[328666427,1717684262561,-500.0,0.00029588,4]
[328666428,1717684262571,-500.0,0.00029588,4]
[328666429,1717684262580,-500.0,0.00029588,4]
[328666430,1717684262589,-500.0,0.00029588,4]
[328666431,1717684262599,-575.36,0.00029588,4]
[328666432,1717684262609,-500.0,0.00029588,4]
[328666433,1717684262619,-500.0,0.00029588,4]
[328666434,1717684262630,-500.0,0.00029588,4]
[328666435,1717684262640,-500.0,0.00029588,4]
[328666436,1717684262649,-507.21,0.00029588,4]
[328666437,1717684262659,-500.0,0.00029588,4]
[328666438,1717684262669,-500.0,0.00029588,4]
[328666439,1717684262679,-500.0,0.00029588,4]
[328666440,1717684262689,-154.34,0.00029588,4]
[328666441,1717684262699,-500.0,0.00029588,4]
[328666442,1717684262708,-500.0,0.00029588,4]
[328666443,1717684262718,-500.0,0.00029588,4]
[328666444,1717684262727,-500.0,0.00029588,4]
[328666445,1717684262738,-500.0,0.00029588,4]
[328666446,1717684262747,-500.0,0.00029588,4]
[328666447,1717684262757,-709.72,0.00029588,4]
[328666448,1717684262767,-500.0,0.00029588,4]
[328666449,1717684262778,-952.09,0.00029588,4]
[328666450,1717684262792,-2774.47,0.00029588,4]
[328666451,1717684262802,-375.18858631,0.00029588,4]
[328666452,1717684262812,-2256.92,0.00029588,4]
[328666453,1717684262822,-2195.89,0.00029588,21]
[328666454,1717684262832,-500.0,0.00029588,4]
[328666455,1717684262843,-2236.94,0.00029588,4]
[328666456,1717684262853,-826.08,0.00029588,4]
[328666457,1717684262865,-500.0,0.00029588,4]
[328666458,1717684262876,-5281.43,0.00029588,4]
[328666459,1717684262886,-1361.63,0.00029588,4]
[328666460,1717684262896,-500.0,0.00029588,4]
[328666461,1717684262906,-500.0,0.00029588,4]
[328666462,1717684262916,-500.0,0.00029588,4]
[328666463,1717684262926,-500.0,0.00029588,4]
[328666464,1717684262936,-500.0,0.00029588,4]
[328666465,1717684262947,-911.21,0.00029588,4]
[328666466,1717684262957,-500.0,0.00029588,4]
[328666467,1717684262967,-580.25,0.00029588,4]
[328666468,1717684262976,-666.1,0.00029588,4]
[328666469,1717684262986,-500.0,0.00029588,4]
[328666470,1717684262995,-2766.93,0.00029588,4]
[328666471,1717684263005,-500.0,0.00029588,4]
[328666472,1717684263015,-500.0,0.00029588,4]
[328666473,1717684263026,-654.11,0.00029588,4]
[328666474,1717684263035,-2418.52,0.00029588,4]
[328666475,1717684263046,-500.0,0.00029588,4]
[328666476,1717684263058,-500.0,0.00029588,4]
[328666477,1717684263068,-500.0,0.00029588,4]
[328666478,1717684263079,-1539.59,0.00029588,4]
[328666479,1717684263090,-1255.3,0.00029588,4]
[328666480,1717684263100,-500.0,0.00029588,4]
[328666481,1717684263110,-500.0,0.00029588,4]
[328666482,1717684263120,-392.50912424,0.00029588,4]
[328666483,1717684263132,-2108.4,0.00029588,4]
[328666484,1717684263142,-500.0,0.00029588,4]
[328666485,1717684263152,-500.0,0.00029588,4]
[328666486,1717684263161,-513.14,0.00029588,4]
[328666487,1717684263171,-500.0,0.00029588,4]
[328666488,1717684263181,-500.0,0.00029588,4]
[328666489,1717684263191,-1285.34,0.00029588,4]
[328666490,1717684263203,-500.0,0.00029588,4]
[328666491,1717684263213,-500.0,0.00029588,4]
[328666492,1717684263223,-500.0,0.00029588,4]
[328666493,1717684263233,-500.0,0.00029588,4]
[328666494,1717684263243,-1334.22,0.00029588,4]
[328666495,1717684263252,-500.0,0.00029588,4]
[328666496,1717684263263,-500.0,0.00029588,4]
[328666497,1717684263273,-1021.38,0.00029588,4]
[328666498,1717684263283,-3029.84,0.00029588,4]
[328666499,1717684263293,-500.0,0.00029588,4]
[328666500,1717684263303,-500.0,0.00029588,4]
[328666501,1717684263312,-2065.71,0.00029588,4]
[328666502,1717684263323,-500.0,0.00029588,4]
[328666503,1717684263333,-561.11,0.00029588,4]
[328666504,1717684263343,-500.0,0.00029588,4]
[328666505,1717684263352,-500.0,0.00029588,4]
[328666506,1717684263362,-2539.25,0.00029588,4]
[328666507,1717684263374,-831.61,0.00029588,4]
[328666508,1717684263384,-386.54385305,0.00029588,4]
[328666509,1717684263394,-859.07,0.00029588,4]
[328666510,1717684263404,-500.0,0.00029588,4]
[328666511,1717684263414,-500.0,0.00029588,4]
[328666512,1717684263424,-816.38,0.00029588,4]
[328666513,1717684263434,-451.62282753,0.00029588,4]
[328666514,1717684263444,-500.0,0.00029588,4]
[328666515,1717684263658,-1242.44,0.00029588,4]
[328666516,1717684263669,-1933.46,0.00029588,4]
[328666517,1717684263679,-968.99,0.00029588,4]
[328666518,1717684263689,-560.98,0.00029588,4]
[328666519,1717684263698,-500.0,0.00029588,4]
[328666520,1717684263708,-813.21,0.00029588,4]
[328666521,1717684263718,-500.0,0.00029588,4]
[328666522,1717684263728,-500.0,0.00029588,4]
[328666523,1717684263738,-500.0,0.00029588,4]
[328666524,1717684263747,-250.0,0.00029588,4]
[328666525,1717684263757,-500.0,0.00029588,4]
[328666526,1717684263768,-500.0,0.00029588,4]
[328666527,1717684263780,-563.87,0.00029588,4]
[328666528,1717684263794,-516.57,0.00029588,4]
[328666529,1717684263804,-648.12,0.00029588,4]
[328666530,1717684263814,-500.0,0.00029588,2]
[328666531,1717684263825,-500.0,0.00029588,4]
[328666532,1717684263835,-500.0,0.00029588,4]
[328666533,1717684263846,-500.0,0.00029588,4]
[328666534,1717684263856,-500.0,0.00029588,4]
[328666535,1717684263874,-1267.63,0.00029588,4]
[328666536,1717684263884,-500.0,0.00029588,4]
[328666537,1717684263894,-500.0,0.00029588,4]
[328666538,1717684263904,-500.0,0.00029588,4]
[328666539,1717684263914,-512.84,0.00029588,4]
[328666540,1717684263924,-1896.79,0.00029588,4]
[328666541,1717684263935,-1555.0,0.00029588,4]
[328666542,1717684263946,-824.64,0.00029588,4]
[328666543,1717684263957,-638.6,0.00029588,4]
[328666544,1717684263966,-500.0,0.00029588,4]
[328666545,1717684263976,-1759.69,0.00029588,4]
[328666546,1717684263987,-500.0,0.00029588,4]
[328666547,1717684263996,-500.0,0.00029588,4]
[328666548,1717684264006,-500.0,0.00029588,4]
[328666549,1717684264017,-2463.73,0.00029588,4]
[328666550,1717684264027,-634.91,0.00029588,4]
[328666551,1717684264037,-500.0,0.00029588,4]
[328666552,1717684264047,-921.39,0.00029588,4]
[328666553,1717684264057,-500.0,0.00029588,4]
[328666554,1717684264067,-209.98927595,0.00029588,4]
[328666555,1717684264077,-500.0,0.00029588,4]
[328666556,1717684264088,-2196.78,0.00029588,4]
[328666557,1717684264098,-5905.36,0.00029588,4]
[328666558,1717684264108,-644.25,0.00029588,4]
[328666559,1717684264120,-1735.83,0.00029588,4]
[328666560,1717684264131,-634.18466424,0.00029588,4]
[328666561,1717684264141,-7148.13,0.00029588,4]
[328666562,1717684264150,-480.48054933,0.00029588,4]
[328666563,1717684264160,-5478.31181403,0.00029589,2]
[328666564,1717684264171,-500.0,0.00029589,4]
[328666565,1717684264180,-283.19827148,0.00029589,4]
[328666566,1717684264190,-500.0,0.00029589,4]
[328666567,1717684264199,-500.0,0.00029589,4]
[328666568,1717684264209,-500.0,0.00029589,4]
[328666569,1717684264219,-500.0,0.00029589,4]
[328666570,1717684264229,-500.0,0.00029589,4]
[328666571,1717684264239,-616.99,0.00029589,4]
[328666572,1717684264249,-500.0,0.00029589,4]
[328666573,1717684264259,-500.0,0.00029589,4]
[328666574,1717684264268,-500.0,0.00029589,4]
[328666575,1717684264278,-500.0,0.00029589,4]
[328666576,1717684264288,-500.0,0.00029589,4]
[328666577,1717684264298,-1651.72,0.00029589,4]
[328666578,1717684264308,-500.0,0.00029589,4]
[328666579,1717684264318,-500.0,0.00029589,4]
[328666580,1717684264327,-500.0,0.00029589,4]
[328666581,1717684264337,-500.0,0.00029589,4]
[328666582,1717684264346,-500.0,0.00029589,4]
[328666583,1717684264357,-500.0,0.00029589,4]
[328666584,1717684264367,-561.16085992,0.00029589,4]
[328666585,1717684264377,-500.0,0.00029589,4]
[328666586,1717684264386,-500.0,0.00029589,4]
[328666587,1717684264396,-500.0,0.00029589,4]
[328666588,1717684264405,-500.0,0.00029589,4]
[328666589,1717684264415,-500.0,0.00029589,4]
[328666590,1717684264424,-729.48,0.00029589,4]
[328666591,1717684264434,-500.0,0.00029589,4]
[328666592,1717684264444,-500.0,0.00029589,4]
[328666593,1717684264454,-510.78,0.00029589,4]
[328666594,1717684264463,-598.2868179,0.00029589,4]
[328666595,1717684264473,-500.0,0.00029589,4]
[328666596,1717684264482,-500.0,0.00029589,4]
[328666597,1717684264492,-500.0,0.00029589,4]
[328666598,1717684264502,-524.89,0.00029589,4]
[328666599,1717684264511,-500.0,0.00029589,4]
[328666600,1717684264521,-570.74,0.00029589,4]
[328666601,1717684264531,-3454.23,0.00029589,4]
[328666602,1717684264540,-500.0,0.00029589,4]
[328666603,1717684264550,-500.0,0.00029589,4]
[328666604,1717684264559,-2264.76,0.00029589,4]
[328666605,1717684264569,-591.19045558,0.00029589,4]
[328666606,1717684264579,-536.19,0.00029589,4]
[328666607,1717684264588,-500.0,0.00029589,4]
[328666608,1717684264598,-488.50934439,0.00029589,4]
[328666609,1717684264608,-500.0,0.00029589,4]
[328666610,1717684264618,-500.0,0.00029589,4]
[328666611,1717684264629,-500.0,0.00029589,4]
[328666612,1717684264639,-743.79,0.00029589,4]
[328666613,1717684264648,-500.0,0.00029589,4]
[328666614,1717684264658,-33426.35,0.00029615,6]
[328666615,1717684264668,-22719.17,0.00029615,6]
[328666616,1717684264677,-1000.0,0.00029615,14]
[328666617,1717684264687,-2501.28,0.00029634,2]
[328666618,1717684264698,-3193.74952965,0.0002964,2]
[328666619,1717684264708,-285.92858482,0.00029643,2]
[328666620,1717684264717,-5478.31181403,0.00029651,2]
[328666621,1717684264727,-25000.0,0.00029653,2]
[328666622,1717684264737,-729.708649,0.00029653,7]
[328666623,1717684264747,-729.708649,0.00029653,7]
[328666624,1717684264756,-281.86775672,0.00029661,2]
[328666625,1717684264766,-160.36007581,0.00029665,2]
[328666626,1717684264776,-166.91520938,0.00029685,2]
[328666627,1717684264788,-361.39549086,0.00029693,2]